[Event "Swedish Championship U20 2022"]
[Site "Uppsala"]
[Date "2022.07.05"]
[Round "4.5"]
[White "Falkevall, Axel"]
[Black "Rasti, Arvin"]
[Result "1-0"]
[ECO "C41"]
[WhiteElo "2275"]
[BlackElo "2136"]
[Annotator "TA"]
[PlyCount "47"]
[EventDate "2022.07.01"]
[EventType "tourn"]
[EventCountry "SWE"]
[SourceTitle "playchess.com"]
[Source "ChessBase"]
[SourceQuality "1"]
[TimeControl "40/5400+30:1800+30"]

{[%evp 19,47,39,60,54,77,62,110,121,95,58,292,298,291,174,187,173,220,236,218,207,246,225,225,237,301,237,252,266,262,238]} 1. e4 {[%emt 0:00:07]} d6 {[%emt 0:00:14]} 2. d4 {[%emt 0:00:13]} Nf6 {[%emt 0:00:14]} 3. Nc3 {[%emt 0:00:15]} e5 {[%emt 0:00:24]} 4. Nf3 {[%emt 0:00:31]} Nbd7 {[%emt 0:00:11]} 5. Bc4 {[%emt 0:01:48]} Be7 {[%emt 0:02:23]} 6. O-O {[%emt 0:00:49]} O-O {[%emt 0:01:00]} 7. Re1 {[%emt 0:01:50]} c6 {[%emt 0:00:16]} 8. a4 {[%emt 0:00:46]} b6 {[%emt 0:00:17]} 9. h3 {[%emt 0:05:51]} a6 {[%emt 0:03:35]} 10. Ba2 {[%emt 0:07:40]} Bb7 {[%emt 0:03:57]} 11. dxe5 {[%emt 0:12:40] was the old line (11.Be3). C41: Philidor Defence.} dxe5 {[%emt 0:00:29]} 12. Nh4 {[%emt 0:02:05]} g6 {[%emt 0:09:22] Against Nf5} (12... Nc5 $14 {deserves consideration.}) 13. Bh6 $16 {[%emt 0:03:35] White is better.} Re8 {[%emt 0:00:16]} 14. Nf3 {[%emt 0:07:21][%cal Bh4f3,Bf3e5,Be5d3,Bd3c5][%mdl 32] Threatens to win with Ng5. White is much more active.} Nh5 $2 {[%emt 0:12:35] Black cannot hold the game after this.} (14... Bf8 $14 15. Qd2 b5) 15. Qd3 $1 $18 {[%emt 0:06:44]} b5 {[%emt 0:09:38] [#]} 16. Rad1 $146 {[%emt 0:10:22]} ({Don't take} 16. axb5 $6 cxb5 17. Nxb5 Nf4 18. Bxf4 exf4 $18) (16. Nxb5 $142 $1 {[%mdl 512]} Nf4 (16... axb5 17. Bxf7+) 17. Bxf4 axb5 18. Bh6 (18. Nxe5 Nxe5 19. Bxe5 Qxd3 $16)) ({Predecessor:} 16. Red1 Nc5 17. Qxd8 Bxd8 18. Be3 Ne6 19. Nxe5 Bf6 20. Nd7 Bg7 21. a5 Bc8 22. Bxe6 {1-0 (22) Mahdy,K (2420)-Traudes,W (2235) Aschach 1996}) 16... Nc5 {[%emt 0:03:46]} 17. Qxd8 {[%emt 0:06:12]} Bxd8 {[%emt 0:01:00] [#]} (17... Raxd8 $142 18. axb5 (18. Nxe5 Ne6 $16) 18... axb5 19. Nxe5 Ne6 20. Bxe6 fxe6) 18. Be3 $1 {[%emt 0:04:18]} Ne6 {[%emt 0:02:39]} 19. Nxe5 {[%emt 0:01:51]} b4 {[%emt 0:03:38]} 20. Nb1 {[%emt 0:02:28]} Nf6 {[%emt 0:03:28]} 21. Nd2 {[%emt 0:03:41]} Bc7 {[%emt 0:01:14]} 22. Nd3 {[%emt 0:00:52]} a5 {[%emt 0:00:26]} 23. Bxe6 {[%emt 0:03:02]} fxe6 {[%emt 0:00:16]} 24. Nc5 {[%emt 0:00:26] Weighted Error Value: White=0.16 (very precise) /Black=0.48} 1-0

[Event "Swedish Championship U20 2022"]
[Site "Uppsala"]
[Date "2022.07.06"]
[Round "5.1"]
[White "Nord, Alexander"]
[Black "Soderstrom, Adrian"]
[Result "1/2-1/2"]
[ECO "D02"]
[WhiteElo "2200"]
[BlackElo "2292"]
[Annotator "TA"]
[PlyCount "155"]
[EventDate "2022.07.01"]
[EventType "tourn"]
[EventCountry "SWE"]
[SourceTitle "playchess.com"]
[Source "ChessBase"]
[SourceQuality "1"]
[TimeControl "40/5400+30:1800+30"]

{[%evp 9,154,18,23,15,31,35,29,-116,-106,-97,-60,-116,-89,-234,-97,-109,-116,-104,-99,-100,-60,-144,0,0,14,-293,-90,-98,-56,-362,37,29,119,126,142,145,385,141,135,133,201,209,189,220,206,125,119,113,233,222,393,399,404,385,313,298,964,408,371,203,224,217,218,83,83,83,83,69,58,47,298,168,246,176,183,170,167,175,180,179,163,172,160,152,223,226,230,225,225,202,260,192,187,116,153,102,100,103,97,41,83,51,70,70,71,72,72,71,72,69,68,20,20,20,24,23,69,16,50,48,45,8,8,8,8,8,8,8,8,8,8,8,8,8,8,0,0,0,0,0,0,0,0,0,0,0,0]} 1. d4 {[%emt 0:00:04]} d5 {[%emt 0:00:36]} 2. Nf3 {[%emt 0:00:11]} Nf6 {[%emt 0:00:05]} 3. g3 {[%emt 0:00:08]} c5 {[%emt 0:00:37]} 4. Bg2 {[%emt 0:00:17]} cxd4 {[%emt 0:00:04]} 5. O-O {[%emt 0:00:09]} h6 {[%emt 0:00:08]} 6. b3 {[%emt 0:07:31] D02: 1 d4 d5 2 Nf3 sidelines, including 2...Nf6 3 g3 and 2...Nf6 3 Bf4.} h5 {[%emt 0:00:15]} 7. Bb2 {[%emt 0:05:11] [#]} h4 $146 {[%emt 0:01:14]} ({Predecessor:} 7... Nc6 8. Nxd4 h4 9. Nxc6 bxc6 10. Nd2 hxg3 11. hxg3 Bg4 12. Nf3 Qc8 13. Qd3 Bf5 {0-1 (29) Mkrtchian,L (2378)-Ter Sahakyan,S (2640) Jermuk 2022}) 8. Nxd4 {[%emt 0:08:18]} (8. Bxd4 h3 9. Bh1 Nc6 $11) (8. gxh4 Nc6 9. Nxd4 (9. Bxd4 Bg4 $15) 9... Rxh4 $15) (8. Qxd4 $11 Nc6 9. Qf4) 8... e5 $17 {[%emt 0:04:29][%cal Be7e5,Be5e4,Be4e3][%mdl 32]} 9. Nf3 {[%emt 0:07:20][%csl LRe5,LRh4]} e4 {[%emt 0:00:03]} 10. Nd4 {[%emt 0:09:54]} (10. Nxh4 $15 g5 11. Bxe4 (11. Qd4 Be7 $15) 11... gxh4 12. Bxd5) 10... Ng4 {[%emt 0:22:05][%cal Og4h2]} 11. Qc1 {[%emt 0:08:36]} (11. Nb5 $17 a6 12. Qxd5 axb5 13. Qxe4+ Qe7 14. Qxe7+ Bxe7 15. Nc3) 11... Bd6 {[%emt 0:06:52]} (11... Nc6 $1 $19 {[%cal Og4h2] and Black stays clearly on top. Hoping for ...Nxh2!} 12. h3 hxg3 $1 13. fxg3 (13. Nxc6 $2 bxc6 14. hxg4 Qh4 $19) 13... Bc5) 12. Nb5 {[%emt 0:06:53]} hxg3 {[%emt 0:03:35]} 13. hxg3 {[%emt 0:09:48]} e3 $1 $36 {[%emt 0:05:27][%mdl 2048] Keeping White busy.} 14. f4 {[%emt 0:00:51]} (14. fxe3 $2 Bxg3 15. Rf3 Qh4 16. Nd6+ Bxd6 $19) 14... Bc5 {[%emt 0:07:49]} 15. Ba3 {[%emt 0:08:46]} (15. Qd1 $15 Qb6 16. Qxd5 Qxb5 17. Bxg7) 15... Qb6 {[%emt 0:05:08]} (15... Na6 $17 {Threatens to win with ...Bd7.} 16. N1c3 Qb6) 16. Bxc5 $11 {[%emt 0:01:29] Chess con chili.} Qxc5 {[%emt 0:03:03]} 17. N5c3 $2 {[%emt 0:01:23][%mdl 8192]} (17. N1c3 $11 {and White stays safe.}) 17... d4 $2 {[%emt 0:04:11]} (17... Qb6 $19 {[%cal Oh8h1] aiming for ...Rh1+!} 18. Qa3 (18. Nxd5 $2 Qh6 $19) 18... Qh6) 18. Nd5 $17 {[%emt 0:00:11]} Rh5 {[%emt 0:01:45]} 19. c4 {[%emt 0:06:37][%mdl 8192]} (19. f5 $1 $15 Kf8 20. Qa3 Qxa3 21. Nxa3) 19... d3 $2 {[%emt 0:22:09]} (19... Qd6 $1 $19 {[%cal Rd6h6] White must now prevent ...Qh6.} 20. Qa3 Rxd5 21. cxd5 (21. Bxd5 $2 Qh6 $19) 21... Qh6) 20. Qa3 $14 {[%emt 0:00:56]} Qxa3 {[%emt 0:05:25]} (20... Rxd5 $1 $11 {remains equal.} 21. cxd5 (21. Bxd5 Qd4 $11) 21... Qb6 22. Qa4+ (22. Rc1 Bd7 $17) 22... Kf8 23. Qa3+ Ke8) 21. Nxa3 $16 {[%emt 0:00:08]} Nc6 {[%emt 0:02:54] Strongly threatening ...Nd4.} 22. exd3 {[%emt 0:02:40]} ({Reject} 22. Nc7+ $6 Kd8 23. Nxa8 Nd4 $11) 22... Bf5 $2 {[%emt 0:00:01]} (22... Nd4 $16 23. Rfe1 (23. Nc7+ $2 Kd8 $19) 23... Kf8) 23. Rfe1 $2 {[%emt 0:01:35]} (23. Nc7+ $18 {and the rest is easy.} Kd7 24. Nxa8) 23... O-O-O {[%emt 0:00:27]} 24. Nc2 {[%emt 0:03:55]} Bxd3 {[%emt 0:00:13]} (24... e2 $16 {was called for.}) 25. Ncxe3 $18 {[%emt 0:00:16]} Nxe3 {[%emt 0:00:37]} 26. Rxe3 {[%emt 0:00:03]} Bf5 {[%emt 0:00:19]} 27. b4 {[%emt 0:01:18][%cal Bb3b4,Bb4b5][%mdl 32]} Be6 {[%emt 0:00:36]} 28. a3 {[%emt 0:01:59]} g5 {[%emt 0:02:15]} (28... Rhh8 $16 29. Rf1 Rh5) 29. f5 $1 {[%emt 0:02:41]} Bxf5 {[%emt 0:01:01] [#]} (29... Bxd5 30. Bxd5 (30. cxd5 Nd4 $16) 30... Rd7) 30. b5 $1 {[%emt 0:01:10]} Nd4 {[%emt 0:00:14]} 31. Rd1 {[%emt 0:02:44]} Nc2 {[%emt 0:00:01]} 32. Rc3 {[%emt 0:01:12]} Bh7 $2 {[%emt 0:00:30]} (32... Bg4) 33. Bf3 {[%emt 0:00:43]} (33. c5 $142) 33... Rh6 {[%emt 0:00:29]} 34. Rd2 {[%emt 0:00:30]} (34. c5 $142 Re6 35. Bg4) 34... Ne1 {[%emt 0:00:09]} 35. Bg4+ {[%emt 0:00:20]} f5 {[%emt 0:01:08]} 36. Ne7+ {[%emt 0:00:33]} (36. Be2 $18 {is more deadly.}) 36... Kc7 $16 {[%emt 0:00:02]} 37. Rxd8 {[%emt 0:00:19] White is more active.} Kxd8 {[%emt 0:00:06]} 38. Nxf5 {[%emt 0:00:11]} Rf6 {[%emt 0:00:11]} 39. Nd4 {[%emt 0:01:10] And now Ne6+ would win.} Nd3 $2 {[%emt 0:00:14][%mdl 8192]} (39... Bd3 $14 40. Be2 Bxe2 41. Nxe2 a6) 40. c5 {[%emt 0:01:34]} (40. Ne6+ $142 Ke7 41. c5 (41. Nxg5 Bf5 $18)) 40... Nf2 {[%emt 0:02:46]} (40... Ne5 {keeps fighting.}) 41. Bf3 {[%emt 0:06:42]} Ne4 {[%emt 0:03:43]} 42. Bxe4 {[%emt 0:03:07]} Bxe4 $18 {[%emt 0:00:03][%mdl 4096] Endgame KRB-KRN} 43. Re3 {[%emt 0:00:13]} Bd5 {[%emt 0:03:57]} 44. Re5 {[%emt 0:03:53][%csl LRd5,LRg5]} Bc4 {[%emt 0:00:06]} 45. Rxg5 {[%emt 0:01:41]} Rf1+ {[%emt 0:00:10]} 46. Kg2 {[%emt 0:00:02][%cal Og5g8]} Rd1 {[%emt 0:01:00]} (46... Ra1 $16 47. Kf3 Rxa3+ 48. Kf4 Rd3) 47. Rg4 {[%emt 0:00:49]} Rd3 {[%emt 0:01:37]} 48. a4 {[%emt 0:01:41]} Bd5+ {[%emt 0:01:31]} 49. Kf2 {[%emt 0:00:25]} Ke7 {[%emt 0:01:00]} 50. Rf4 {[%emt 0:00:45]} Rc3 {[%emt 0:01:27]} 51. Nf5+ {[%emt 0:02:31]} (51. b6 $18 a6 52. Rf5 Rxc5 53. Rh5) 51... Ke6 {[%emt 0:00:52] [#]} 52. Ne3 {[%emt 0:01:13]} (52. c6 $142 $1) 52... Ba2 $16 {[%emt 0:08:56]} 53. Re4+ {[%emt 0:01:53]} Kf6 {[%emt 0:00:58]} 54. Rd4 {[%emt 0:01:27]} ({Better is} 54. Re8 $16 {Rb8 is the strong threat.} Rxc5 55. Ra8) 54... Be6 {[%emt 0:00:44]} 55. Rd8 {[%emt 0:04:48]} Rxc5 {[%emt 0:03:30]} 56. Ra8 {[%emt 0:00:38]} a6 {[%emt 0:00:04]} 57. bxa6 {[%emt 0:00:23]} bxa6 {[%emt 0:00:02]} 58. Rxa6 {[%emt 0:00:12]} Ke5 {[%emt 0:00:11]} 59. Ra7 {[%emt 0:02:21]} Rc3 {[%emt 0:00:48]} 60. Re7 {[%emt 0:00:44]} (60. Rh7 $14) 60... Kd6 $11 {[%emt 0:00:36]} 61. Rh7 {[%emt 0:00:38]} Ra3 {[%emt 0:00:33]} 62. Rh4 {[%emt 0:00:09]} Kc5 {[%emt 0:01:00] Against Nc4} (62... Ra2+ $11 {is more appropriate.} 63. Kf3 Bd7) 63. Rf4 {[%emt 0:01:19]} (63. Rh5+ $14 Kd6 64. a5) 63... Bb3 {[%emt 0:01:21]} 64. g4 {[%emt 0:01:02]} Rxa4 {[%emt 0:01:03]} 65. Kf3 {[%emt 0:01:00]} Rxf4+ {[%emt 0:00:40] The position is equal.} 66. Kxf4 {[%emt 0:00:02] KB-KN} Kd6 {[%emt 0:00:23]} 67. Nf5+ {[%emt 0:00:08]} Kd7 {[%emt 0:00:10]} 68. Ke5 {[%emt 0:00:24]} Ke8 {[%emt 0:01:09]} 69. Kf6 {[%emt 0:00:07]} Kf8 {[%emt 0:00:44]} 70. Nd4 {[%emt 0:00:19]} Ba2 {[%emt 0:00:16]} 71. g5 {[%emt 0:00:23][%cal Bg4g5,Bg5g6,Bg6g7][%mdl 32]} Bb1 {[%emt 0:00:08]} 72. Nf5 {[%emt 0:00:19]} Bxf5 {[%emt 0:00:11]} 73. Kxf5 {[%emt 0:00:02] Threatening mate with Kg6. KP-K} Kf7 $1 {[%emt 0:00:06]} 74. g6+ {[%emt 0:00:03]} Kg7 {[%emt 0:00:03]} 75. Kg5 {[%emt 0:00:05]} Kg8 {[%emt 0:00:02]} 76. Kf6 {[%emt 0:00:06]} Kf8 {[%emt 0:00:01]} 77. g7+ {[%emt 0:00:06]} Kg8 {[%emt 0:00:04]} 78. Kg6 {[%emt 0:00:01] Black escapes into a draw.  Weighted Error Value: White=0.58/Black=0.49} 1/2-1/2

[Event "Swedish Championship U20 2022"]
[Site "Uppsala"]
[Date "2022.07.06"]
[Round "5.2"]
[White "Seo, Jung Hyun"]
[Black "Olsson, William"]
[Result "1/2-1/2"]
[ECO "B76"]
[WhiteElo "2102"]
[BlackElo "2284"]
[Annotator "TA"]
[PlyCount "112"]
[EventDate "2022.07.01"]
[EventType "tourn"]
[EventCountry "SWE"]
[SourceTitle "playchess.com"]
[Source "ChessBase"]
[SourceQuality "1"]
[TimeControl "40/5400+30:1800+30"]

{[%evp 30,112,37,23,35,29,37,26,27,0,0,0,70,0,95,95,98,54,58,81,74,46,29,-7,-12,-14,0,0,0,-321,-318,-316,-302,-343,-339,-370,-365,-382,-375,-396,-388,-356,-297,-261,-152,-202,0,0,0,-208,-214,-190,-189,-196,-187,-202,-179,-168,-43,-267,-267,-260,-260,-260,-260,-260,-256,-256,-247,-215,-114,-115,-60,-60,-23,-23,-6,-23,-8,-23,-25,-52,-15,-58,-36]} 1. e4 {[%emt 0:00:09]} c5 {[%emt 0:00:03]} 2. Nf3 {[%emt 0:00:03]} d6 {[%emt 0:00:03]} 3. d4 {[%emt 0:00:02]} cxd4 {[%emt 0:00:04]} 4. Nxd4 {[%emt 0:00:02]} Nf6 {[%emt 0:00:06]} 5. Nc3 {[%emt 0:00:05]} g6 {[%emt 0:00:02]} 6. Be3 {[%emt 0:00:11]} Bg7 {[%emt 0:00:04]} 7. f3 {[%emt 0:00:02]} O-O {[%emt 0:00:05]} 8. Qd2 {[%emt 0:00:01]} Nc6 {[%emt 0:00:05]} 9. O-O-O {[%emt 0:00:05]} d5 {[%emt 0:00:07]} 10. Qe1 {[%emt 0:00:05]} e5 {[%emt 0:00:04]} 11. Nxc6 {[%emt 0:00:04]} bxc6 {[%emt 0:00:05]} 12. exd5 {[%emt 0:00:03]} Nxd5 {[%emt 0:00:05]} 13. Bc4 {[%emt 0:00:06]} Be6 {[%emt 0:00:04]} 14. Ne4 {[%emt 0:00:12]} Qc7 {[%emt 0:00:19]} 15. Bc5 {[%emt 0:00:18]} Rfd8 {[%emt 0:00:11]} 16. Qh4 {[%emt 0:00:26]} h6 {[%emt 0:05:41] Prevents Ng5. B76: Sicilian Dragon: Yugoslav Attack, 9 g4 and 9 0-0-0.} 17. g4 {[%emt 0:01:28]} Nf4 {[%emt 0:06:43]} 18. Bxe6 {[%emt 0:09:43]} Nxe6 {[%emt 0:00:09] White has an edge.} 19. Bd6 {[%emt 0:00:12]} Qa5 {[%emt 0:02:40]} 20. Kb1 {[%emt 0:05:18]} Nd4 {[%emt 0:06:00] [#]} (20... Rd7 $11) 21. c3 $146 {[%emt 0:09:25]} (21. Qf2 $14) ({Predecessor:} 21. Rd3 Qa4 22. b3 Qb5 23. a4 Qa5 24. Qe7 Re8 25. Qc7 Qd5 26. Ba3 Red8 27. Qe7 {1-0 (35) Baciu,A (2104)-Stanciu,I (1850) Calimanesti 2014}) 21... Nb5 {[%emt 0:05:35]} (21... Nxf3 $11 {remains equal.} 22. Qf2 Ng5 23. Nxg5 hxg5) 22. Bb4 $1 $16 {[%emt 0:07:45]} Qb6 {[%emt 0:13:39]} 23. a4 {[%emt 0:13:48]} Rxd1+ {[%emt 0:03:02]} 24. Rxd1 {[%emt 0:00:03]} Nd4 {[%emt 0:00:22]} 25. Qe7 {[%emt 0:18:56]} ({Worse is} 25. cxd4 Qxb4 26. dxe5 Bxe5 $17) 25... a5 {[%emt 0:11:58]} 26. Ba3 {[%emt 0:20:07]} (26. cxd4 $5 {[%cal Rb4d6]} Qxb4 27. Qxb4 axb4 28. d5 cxd5 29. Rxd5 $11) 26... Qb3 {[%emt 0:06:03]} 27. Rd2 {[%emt 0:00:00] Active counter play!} Bf8 $36 {[%emt 0:08:47][%mdl 2048] Black has good play.} 28. Nf6+ {[%emt 0:00:00]} ({But not} 28. Qxe5 $2 Nxf3 29. Nf6+ Kh8 $19) 28... Kh8 {[%emt 0:01:22]} 29. Qxf8+ {[%emt 0:00:00][%mdl 8192]} (29. Qc7 $11 Bxa3 30. cxd4) 29... Rxf8 $19 {[%emt 0:00:05]} 30. Bxf8 {[%emt 0:00:00]} Qe6 {[%emt 0:00:43]} (30... Nxf3 $2 31. Rd8 Qd5 32. Nxd5 $18) 31. cxd4 {[%emt 0:04:57] g5 is the strong threat.} Qxf6 {[%emt 0:00:10]} 32. dxe5 {[%emt 0:00:38]} Qxe5 {[%emt 0:00:38]} 33. Bxh6 {[%emt 0:00:50][%mdl 4096] Endgame KQ-KRB} Kh7 {[%emt 0:01:01]} 34. g5 {[%emt 0:03:15]} Qf5+ {[%emt 0:03:48]} 35. Ka2 {[%emt 0:02:22]} Qe6+ {[%emt 0:03:18]} 36. b3 {[%emt 0:00:40]} f6 {[%emt 0:01:00]} (36... Qe3 $19 37. Rb2 Kg8) 37. f4 {[%emt 0:01:30]} (37. Bf8 $17 {might work better.}) 37... Kg8 $2 {[%emt 0:00:26]} (37... c5 $1 $19 {[%cal Rc5c4] aiming for ...c4.} 38. Rc2 Qd6) 38. Rd8+ $11 {[%emt 0:00:10]} Kh7 {[%emt 0:00:46] White must now prevent ...c5.} 39. gxf6 $2 {[%emt 0:01:11]} Qxf6 $19 {[%emt 0:00:47]} 40. Bg5 {[%emt 0:00:07] [#]} Qc3 {[%emt 0:00:56][%mdl 1024] Black has strong compensation.} 41. Rd7+ {[%emt 0:30:21]} Kg8 {[%emt 0:30:10]} 42. Re7 {[%emt 0:00:02]} Qc2+ {[%emt 0:00:47]} 43. Ka3 {[%emt 0:06:17]} Qb1 {[%emt 0:00:16]} (43... Qxh2 $19 {Hoping for ...Qd2.} 44. Rc7 Qc2) 44. Re2 $2 {[%emt 0:00:00]} ({White has to play} 44. Bf6 $1 $15) 44... Kf7 {[%emt 0:00:00]} ({Not} 44... Qa1+ $2 45. Ra2 Qd1 46. h3 $19) 45. Re7+ {[%emt 0:00:00]} Kf8 {[%emt 0:00:00][%cal Rb1a1]} 46. Re2 {[%emt 0:00:00]} Qa1+ {[%emt 0:00:00]} 47. Ra2 {[%emt 0:00:00]} Qc1+ {[%emt 0:00:00]} 48. Rb2 {[%emt 0:00:00]} Ke8 {[%emt 0:00:00]} 49. h4 {[%emt 0:00:00]} Kd7 {[%emt 0:00:00]} (49... Qa1+ $19 50. Ra2 Qd1) 50. Ka2 {[%emt 0:00:00][%cal Of4f5] [#]} Qe1 {[%emt 0:00:00]} (50... Qc3 $1 $17 {Threatens to win with ...c5.} 51. f5 gxf5) 51. Rc2 $15 {[%emt 0:00:00]} Kd6 {[%emt 0:00:00]} 52. Rc4 {[%emt 0:00:00]} Kd5 {[%emt 0:00:00]} 53. Kb2 {[%emt 0:00:00]} Qf1 {[%emt 0:00:00]} 54. Ka2 {[%emt 0:00:00]} Qe2+ {[%emt 0:00:00]} 55. Kb1 {[%emt 0:00:00]} Qg2 {[%emt 0:00:00]} (55... Qf3 $5 {[%cal Rf3b3]} 56. Kb2 Qe2+ 57. Rc2 Qe4 $15) 56. Ka1 {[%emt 0:00:00]} Qh1+ {[%emt 0:00:00] White happily takes the draw.  Weighted Error Value: White=0.51/Black=0.32} 1/2-1/2

[Event "Swedish Championship U20 2022"]
[Site "Uppsala"]
[Date "2022.07.06"]
[Round "5.3"]
[White "Wernberg, Hugo"]
[Black "Grahn, Vidar"]
[Result "1-0"]
[ECO "D45"]
[WhiteElo "2316"]
[BlackElo "2003"]
[Annotator "TA"]
[PlyCount "57"]
[EventDate "2022.07.01"]
[EventType "tourn"]
[EventCountry "SWE"]
[SourceTitle "playchess.com"]
[Source "ChessBase"]
[SourceQuality "1"]
[TimeControl "40/5400+30:1800+30"]

{[%evp 13,57,20,20,0,25,13,54,37,88,89,97,90,94,81,91,99,91,39,32,30,63,60,176,170,293,256,259,208,224,222,221,205,428,435,438,433,588,582,567,404,514,514,621,484,490,466]} 1. d4 {[%emt 0:00:05]} d5 {[%emt 0:00:03]} 2. c4 {[%emt 0:00:09]} c6 {[%emt 0:00:03]} 3. Nf3 {[%emt 0:00:06]} Nf6 {[%emt 0:00:06]} 4. Nc3 {[%emt 0:00:20]} e6 {[%emt 0:00:05]} 5. e3 {[%emt 0:00:12]} Nbd7 {[%emt 0:00:06]} 6. Be2 {[%emt 0:00:14]} dxc4 {[%emt 0:00:07]} 7. a4 $1 {[%emt 0:00:11][%mdl 4] now scores much better than the old 7.Bxc4.} Bb4 {[%emt 0:01:37]} 8. Bxc4 {[%emt 0:10:00] D45: Semi-Slav: 5 e3.} O-O {[%emt 0:01:18]} 9. O-O {[%emt 0:01:51]} c5 {[%emt 0:03:06]} 10. Na2 {[%emt 0:07:19] White is slightly better.} Ba5 {[%emt 0:16:05]} (10... b6 $14) 11. dxc5 $16 {[%emt 0:03:44]} Bc7 {[%emt 0:00:36]} 12. b4 {[%emt 0:02:03]} a5 {[%emt 0:02:08]} 13. Ba3 {[%emt 0:05:51] [#]} Qe7 $146 {[%emt 0:04:14]} ({Predecessor:} 13... Ne5 14. Nxe5 Bxe5 15. Qxd8 Rxd8 16. Rad1 Bd7 17. b5 Rdc8 18. Nc1 Be8 19. Be2 b6 {1-0 (53) Davydov,S (2207)-Efremov,V (1953) St Petersburg 2017}) 14. Rc1 {[%emt 0:14:22]} Rd8 {[%emt 0:11:00][%cal Od7c5]} 15. Qe2 {[%emt 0:20:28]} ({Better is} 15. Bd3 $16) 15... axb4 $14 {[%emt 0:02:28]} 16. Bxb4 {[%emt 0:00:58] Strongly threatening Bb5.} Ba5 {[%emt 0:01:08]} 17. Ba3 {[%emt 0:02:31] White is more active.} b6 {[%emt 0:01:54]} (17... Nxc5 $14 18. Bxc5 Qxc5) 18. Nd4 $18 {[%emt 0:04:05] [#] Qf3 is the strong threat.} Re8 {[%emt 0:11:57]} (18... bxc5 $142 19. Nc6 Qd6 20. Nxd8 Bxd8) 19. Nc6 {[%emt 0:11:20]} Qf8 {[%emt 0:00:26]} 20. Bb5 {[%emt 0:01:43]} bxc5 {[%emt 0:07:05]} 21. Nxa5 {[%emt 0:00:21]} Rxa5 {[%emt 0:00:25]} 22. Rfd1 {[%emt 0:00:57]} Rd8 $2 {[%emt 0:06:20]} (22... Ra7 23. e4 Qe7) 23. Qd2 {[%emt 0:04:10]} Ra8 {[%emt 0:04:25] [#]} 24. Bxc5 $1 {[%emt 0:01:49][%mdl 512]} Ne4 {[%emt 0:00:39]} (24... Qe8 25. Bb6) 25. Bxf8 {[%emt 0:01:43] This bishop pair is nice.} Nxd2 {[%emt 0:00:47]} 26. Rxd2 {[%emt 0:01:15]} Kxf8 {[%emt 0:00:06]} 27. Nb4 {[%emt 0:00:32] White is clearly winning.} e5 {[%emt 0:06:42]} 28. Rcd1 {[%emt 0:01:14]} f6 {[%emt 0:00:24]} 29. h3 {[%emt 0:00:58] Weighted Error Value: White=0.20 (precise) /Black=0.50} ({Not} 29. Bxd7 Rxd7 30. Rxd7 Bxd7 $16) 1-0

[Event "Swedish Championship U20 2022"]
[Site "Uppsala"]
[Date "2022.07.06"]
[Round "5.4"]
[White "Rasti, Arvin"]
[Black "Ostlund, Joar"]
[Result "0-1"]
[ECO "C26"]
[WhiteElo "2136"]
[BlackElo "2222"]
[Annotator "TA"]
[PlyCount "70"]
[EventDate "2022.07.01"]
[EventType "tourn"]
[EventCountry "SWE"]
[SourceTitle "playchess.com"]
[Source "ChessBase"]
[SourceQuality "1"]
[TimeControl "40/5400+30:1800+30"]

{[%evp 9,70,-19,0,-3,-9,-17,-7,-31,0,-2,0,-41,-27,-25,-31,-33,-30,-37,-18,-35,-23,-59,-62,-64,-64,-104,-73,-92,-41,-64,-52,-56,-36,-67,-68,-97,-66,-73,-41,-70,-63,-116,-76,-101,-56,-160,-102,-164,-147,-235,-115,-243,-222,-212,-110,-103,-103,-247,-244,-249,-266,-271,-195]} 1. e4 {[%emt 0:00:04]} e5 {[%emt 0:00:09]} 2. Nc3 {[%emt 0:00:21]} Nf6 {[%emt 0:00:17]} 3. g3 {[%emt 0:00:22]} Bc5 {[%emt 0:04:47]} 4. Bg2 {[%emt 0:00:20]} O-O {[%emt 0:00:42]} 5. d3 {[%emt 0:01:37]} Nc6 {[%emt 0:05:11]} 6. Nge2 {[%emt 0:00:30] C26: Vienna Game: 2...Nf6, sidelines .} a5 {[%emt 0:01:45]} 7. O-O {[%emt 0:05:11]} d6 {[%emt 0:02:07]} 8. h3 {[%emt 0:02:23] The position is equal.} (8. Bg5 {feels hotter.} h6 9. Bxf6 Qxf6 10. Nd5) 8... a4 {[%emt 0:05:18] [#]} 9. Kh2 $146 {[%emt 0:02:55]} ({Predecessor:} 9. a3 Be6 10. Kh2 Nd7 11. f4 f6 12. f5 Bf7 13. g4 {½-½ (13) Huenerfauth,U (2191)-Malyshev,V (2140) ICCF email 2012}) 9... a3 {[%emt 0:06:01]} 10. bxa3 {[%emt 0:05:37]} Bxa3 {[%emt 0:04:03]} 11. Bxa3 {[%emt 0:05:18]} Rxa3 {[%emt 0:00:06]} 12. f4 {[%emt 0:04:38]} Re8 {[%emt 0:09:07]} 13. Qc1 {[%emt 0:06:04]} Ra5 {[%emt 0:14:07]} 14. Qd2 {[%emt 0:09:32]} b6 {[%emt 0:02:52]} 15. Nd5 {[%emt 0:14:27]} Nxd5 {[%emt 0:07:24]} 16. exd5 {[%emt 0:00:02]} Nd4 {[%emt 0:02:28] Strongly threatening ...Nxe2.} 17. Nc3 {[%emt 0:01:52]} f6 {[%emt 0:05:27] Black is more active.} 18. Ne4 {[%emt 0:03:47]} Nf5 {[%emt 0:09:59]} (18... f5 $1 $17 {[%cal Rf5e4]} 19. Nc3 Qf6) 19. fxe5 {[%emt 0:04:43]} dxe5 {[%emt 0:01:23]} 20. c4 {[%emt 0:00:48]} Nd6 {[%emt 0:01:36]} 21. Nc3 {[%emt 0:01:41]} Bf5 {[%emt 0:01:28]} 22. Rae1 {[%emt 0:01:15]} Qd7 {[%emt 0:00:46]} 23. Rf2 {[%emt 0:01:46]} Bg6 {[%emt 0:00:45]} 24. g4 {[%emt 0:05:42]} h6 {[%emt 0:00:45]} 25. Rfe2 {[%emt 0:00:56]} (25. Re3 $15) 25... Rea8 {[%emt 0:00:39]} 26. Bf3 {[%emt 0:01:52]} Rf8 {[%emt 0:02:33]} 27. h4 {[%emt 0:02:24]} ({White should play} 27. a4 $15) 27... Ra3 {[%emt 0:00:31]} (27... e4 $142 $1 {[%cal Re4f3]} 28. Bxe4 Nxe4 29. dxe4 Qxg4) 28. Rg1 {[%emt 0:01:14]} (28. Rg2 $17) 28... Qd8 {[%emt 0:00:48][%cal Oe5e4]} 29. Kh3 {[%emt 0:01:40]} (29. Qb2 $17 Qa8 30. Qd2) 29... Qa8 {[%emt 0:00:44]} (29... b5 $19 {has better winning chances.} 30. h5 Bxd3 $1 31. Qxd3 f5 32. gxf5 (32. cxb5 $2 e4 $19) (32. Rxe5 $2 Qf6 $19) 32... Nxf5) 30. Re3 {[%emt 0:03:16] [#]} (30. Rg3 $17) 30... Qa5 $1 $19 {[%emt 0:00:45]} 31. Rc1 {[%emt 0:00:27]} Ra8 {[%emt 0:01:10]} (31... Qc5 $19 32. h5 Bh7) 32. Bd1 $17 {[%emt 0:02:28]} e4 {[%emt 0:01:56]} 33. Be2 {[%emt 0:00:29]} (33. Bb3 $17) 33... exd3 $19 {[%emt 0:03:55]} 34. Bxd3 {[%emt 0:00:05]} Bxd3 {[%emt 0:00:13]} 35. Rxd3 {[%emt 0:00:25]} Nxc4 {[%emt 0:00:48] Weighted Error Value: White=0.32/Black=0.23 (precise)} 0-1